bitfinex/quotes_ETHUSD_20220111
["timestamp","ask_amount","ask_price","bid_price","bid_amount"]
[1641893677564,8.98407099,3115.1,3115.0,0.0022737]
[1641893678214,9.01438666,3115.1,3115.0,0.0022737]
[1641893678406,5.93407099,3115.1,3115.0,0.0022737]
[1641893678808,5.63407099,3115.1,3115.0,0.0022737]
[1641893679409,4.03484512,3115.1,3115.0,0.0022737]
[1641893679610,3.99600594,3115.1,3115.0,0.0022737]
[1641893681213,4.02956984,3115.1,3115.0,0.0022737]
[1641893681410,3.99600594,3115.1,3115.0,0.0022737]
[1641893682463,4.0348764,3115.1,3115.0,0.0022737]
[1641893682661,3.99600594,3115.1,3115.0,0.0022737]
[1641893683060,4.03548519,3115.1,3115.0,0.0022737]
[1641893683462,4.03022433,3115.1,3115.0,0.0022737]
[1641893685069,4.83290433,3115.1,3115.0,0.0022737]
[1641893685467,4.79868594,3115.1,3115.0,0.0022737]
[1641893686313,3.99600594,3115.1,3115.0,0.0022737]
[1641893695013,7.60481959,3115.1,3115.0,0.0022737]
[1641893695217,7.64317932,3115.1,3115.0,0.0022737]
[1641893695411,5.05276,3115.0,3114.9,0.00284212]
[1641893695618,9.1058738,3115.0,3114.9,0.00284212]
[1641893696012,9.1058738,3115.0,3114.5,0.00511581]
[1641893696613,9.4058738,3115.0,3114.8,0.80271]
[1641893696813,9.4058738,3115.0,3114.5,0.00511581]
[1641893696814,7.4211793,3115.0,3114.5,0.00511581]
[1641893697069,10.0262069,3115.0,3114.9,0.00284212]
[1641893697262,6.65094462,3115.0,3114.5,0.00511581]
[1641893697464,2.0684193,3115.0,3114.5,0.00511581]
[1641893697764,2.3684193,3115.0,3114.4,0.00568424]
[1641893697963,5.76336745,3115.0,3114.4,0.00568424]
[1641893698266,1.6054533,3114.8,3114.6,1.60538]
[1641893698466,3.39123803,3114.7,3114.6,1.60538]
[1641893698663,1.6054533,3114.8,3114.6,1.60538]
[1641893698664,1.6054533,3114.8,3114.6,1.90538]
[1641893698864,1.6054533,3114.8,3114.6,1.90992739]
[1641893699063,1.6054533,3114.8,3114.7,0.3]
[1641893699264,0.80272,3114.8,3114.7,0.3]
[1641893699464,1.10272,3114.8,3114.7,0.3]
[1641893701729,1.10272,3114.8,3114.7,1.17727275]
[1641893701730,0.80272,3114.8,3114.7,1.17727275]
[1641893701929,1.6054266,3114.9,3114.7,1.17727275]
[1641893702132,2.0684266,3114.9,3114.7,1.17727275]
[1641893702330,2.0684266,3114.9,3114.8,0.00341054]
[1641893702731,1.0676266,3114.9,3114.8,0.00341054]
[1641893703338,5.23921374,3114.9,3114.7,0.87727275]
[1641893703534,3.3637741,3114.8,3114.7,0.87727275]
[1641893703934,2.20942094,3114.9,3114.6,1.60538]
[1641893703935,2.1703166,3114.9,3114.6,1.60538]
[1641893704335,1.60559,3114.8,3114.6,1.60538]
[1641893705154,1.60559,3114.8,3114.7,0.3]
[1641893708212,1.0676266,3114.9,3114.7,0.3]
[1641893708416,0.6046266,3114.9,3114.7,0.38025]
[1641893710517,1.4073166,3114.9,3114.7,0.38025]
[1641893711967,0.8026978,3115.0,3114.8,3.4252951]
[1641893712157,0.8026978,3115.0,3114.7,1.06385]
[1641893712158,3.53304778,3115.0,3114.7,1.06385]
[1641893712558,2.73034998,3115.0,3114.7,1.06385]
[1641893712959,0.482928,3115.1,3115.0,1.52281821]
[1641893713158,0.482928,3115.1,3115.0,1.82281821]
[1641893713762,3.21327798,3115.1,3115.0,1.82281821]
[1641893720358,3.21327798,3115.1,3115.0,0.3]
[1641893724216,3.21327798,3115.1,3114.9,0.8025]
[1641893724217,3.67627798,3115.1,3114.9,0.8025]
[1641893724410,4.77904078,3115.1,3114.9,0.8025]
[1641893724610,0.00113684,3115.0,3114.9,0.8025]
[1641893724810,0.00113684,3115.0,3114.8,1.605]
[1641893725012,2.73148682,3115.0,3114.8,1.605]
[1641893725812,2.73148682,3115.0,3114.8,1.905]
[1641893726011,3.99720682,3115.0,3114.8,1.905]
[1641893726412,3.99720682,3115.0,3114.8,1.605]
[1641893726612,4.29720682,3115.0,3114.8,1.605]
[1641893727163,2.73034998,3114.9,3114.8,1.605]
[1641893727765,2.73034998,3114.9,3114.8,1.905]
[1641893737159,2.73148682,3115.0,3114.8,1.905]
[1641893737560,2.73148682,3115.0,3114.8,2.70767]
[1641893740920,0.00113684,3115.0,3114.8,2.70767]
[1641893741971,2.73148682,3115.0,3114.8,2.70767]
[1641893742156,3.53418682,3115.0,3114.8,2.70767]
[1641893742561,3.53418682,3115.0,3114.8,1.905]
[1641893742759,2.73148682,3115.0,3114.8,1.905]
[1641893743157,0.00113684,3115.0,3114.8,1.905]
[1641893743558,2.73148682,3115.0,3114.8,2.7077]
[1641893746707,2.73148682,3115.0,3114.8,1.905]
[1641893747406,3.53419682,3115.0,3114.8,1.905]
[1641893748508,2.73034998,3114.9,3114.8,1.905]
[1641893750664,2.73034998,3114.9,3114.6,2.40802]
[1641893750665,2.73034998,3114.9,3114.6,0.8026407]
[1641893751265,2.73034998,3114.9,3114.5,0.08025]
[1641893751667,2.73034998,3114.9,3114.6,0.00113685]
[1641893752167,0.00113684,3115.0,3114.6,0.00113685]
[1641893752168,2.73148682,3115.0,3114.6,0.00113685]
[1641893752365,0.80266,3114.8,3114.6,0.00113685]
[1641893752565,1.26566,3114.8,3114.6,0.00113685]
[1641893752767,1.26566,3114.8,3113.3,3.6324]
[1641893752768,7.2,3114.7,3113.4,4.286]
[1641893752969,7.2,3114.7,3113.4,3.1038]
[1641893752970,0.01205282,3114.5,3113.4,3.1038]
[1641893753211,0.76408814,3114.1,3113.5,0.00625266]
[1641893753411,0.80312,3113.8,3113.5,0.00625266]
[1641893753613,0.80312,3113.8,3113.2,0.00795793]
[1641893753614,0.463,3113.7,3113.2,0.00795793]
[1641893753811,0.413,3113.7,3113.2,0.00795793]
[1641893754612,3.53347998,3113.6,3113.2,0.00795793]
[1641893754812,0.463,3113.5,3113.2,0.00795793]
[1641893755412,3.19334998,3113.5,3113.2,0.00795793]
[1641893755812,4.79956998,3113.5,3113.2,0.00795793]
[1641893756012,2.73034998,3113.4,3113.2,0.00795793]
[1641893757559,2.73034998,3113.4,3112.9,0.0096632]
[1641893757760,0.80312,3113.2,3112.9,0.0096632]
[1641893757961,0.8031,3113.1,3112.9,0.0096632]
[1641893758363,0.8031,3113.1,3112.9,0.8127177]
[1641893758561,0.8031,3113.1,3112.9,1.53581659]
[1641893758761,0.8031,3113.1,3113.0,0.00909477]
[1641893759664,0.8031,3113.1,3113.0,0.08938477]
[1641893760911,0.8031,3113.1,3113.0,0.00909477]
[1641893766666,1.60606,3113.4,3113.0,0.00909477]
[1641893766867,1.60606,3113.4,3113.0,0.81211917]
[1641893767267,1.60606,3113.4,3113.1,0.00852635]
[1641893767670,2.73107071,3113.3,3113.1,0.00852635]
[1641893769713,1.60606,3113.4,3113.1,0.00852635]
[1641893771118,0.80303,3113.4,3113.1,0.00852635]
[1641893775174,1.60612,3113.4,3113.1,0.00852635]
[1641893775578,5.41384128,3113.4,3113.1,0.00852635]
[1641893775812,5.49413128,3113.4,3113.1,0.00852635]
[1641893776014,5.49413128,3113.4,3112.8,0.01023162]
[1641893776212,0.80317,3113.1,3112.6,0.01136847]
[1641893776415,5.00404606,3113.2,3112.5,1.59780402]
[1641893776613,5.00404606,3113.2,3112.7,0.73217555]
[1641893777015,5.00404606,3113.2,3112.8,0.01023162]
[1641893777815,0.80319,3113.0,3112.8,0.01023162]
[1641893778014,1.60638,3113.0,3112.8,0.01023162]
[1641893779216,4.94408575,3113.0,3112.8,0.01023162]
[1641893779474,4.94408575,3113.0,3112.6,0.01136847]
[1641893779475,0.463,3112.9,3112.6,0.01136847]
[1641893779664,1.60661,3112.8,3112.6,0.01136847]
[1641893779863,2.06961,3112.8,3112.6,0.01136847]
[1641893780064,2.06961,3112.8,3112.3,0.01307374]
[1641893780065,3.67625,3112.8,3112.3,0.01307374]
[1641893780264,0.80331,3112.7,3112.3,0.01307374]
[1641893781063,1.60665,3112.6,3112.3,0.01307374]
[1641893781267,0.80336,3112.5,3112.3,0.01307374]
[1641893783914,4.31265105,3112.5,3112.3,0.01307374]
[1641893784113,3.88622671,3112.4,3112.2,0.01364216]
[1641893784316,3.44560647,3112.3,3111.9,0.01534743]
[1641893784511,5.05248647,3112.3,3111.9,0.01534743]
[1641893784711,2.41032,3112.3,3111.9,0.01534743]
[1641893785110,2.41032,3112.3,3112.0,0.67626882]
[1641893785315,0.80344,3112.2,3112.0,0.67626882]
[1641893785612,0.80344,3112.2,3112.1,0.01421059]
[1641893786714,0.80344,3112.2,3112.0,0.01477901]
[1641893788467,0.80349,3112.1,3112.0,0.01477901]
[1641893788765,0.80344,3112.2,3111.8,0.01591586]
[1641893788965,0.80348,3112.1,3111.8,0.01591586]
[1641893789265,0.80347,3112.0,3111.8,0.01591586]
[1641893789469,0.80347,3112.0,3111.9,0.85936797]
[1641893789867,0.80347,3112.0,3111.9,0.8747154]
[1641893790570,0.8034,3112.1,3111.9,0.8747154]
[1641893790810,0.8034,3112.1,3111.9,1.6780942]
[1641893791009,0.8034,3112.1,3112.0,0.01477901]
[1641893791611,1.6068,3112.1,3112.0,0.01477901]
[1641893792020,1.6068,3112.1,3111.8,0.81935716]
[1641893792212,4.33886634,3112.1,3111.8,0.81935716]
[1641893792413,4.33886634,3112.1,3111.9,0.01534743]
[1641893792614,1.6068,3112.1,3111.9,0.01534743]
[1641893794015,0.8034,3112.1,3111.9,0.01534743]
[1641893795460,0.8034,3112.1,3111.9,0.09566743]
[1641893795661,0.80334,3112.3,3112.0,0.8033366]
[1641893795861,0.80334,3112.3,3112.0,0.81811561]
[1641893796060,0.80334,3112.3,3112.1,0.01421059]
[1641893796662,0.80334,3112.3,3111.9,1.6066731]
[1641893796663,3.53537755,3112.2,3112.0,0.01477901]
[1641893796865,3.53537755,3112.2,3112.1,0.8033646]
[1641893797267,3.53537755,3112.2,3112.1,0.81757519]
[1641893797668,0.80338,3112.2,3112.1,0.81757519]
[1641893798917,0.80338,3112.2,3112.1,0.01421059]
[1641893799418,0.80338,3112.2,3112.0,0.01477901]
[1641893799821,0.80338,3112.2,3111.8,0.01591586]
[1641893800018,0.80338,3112.2,3111.9,0.08032]
[1641893800318,0.80338,3112.2,3112.0,0.01477901]
[1641893800517,0.80338,3112.2,3112.0,0.81818431]
[1641893800917,0.80338,3112.2,3112.1,0.01421059]
[1641893802160,0.463,3112.4,3112.1,0.01421059]
[1641893802760,0.463,3112.4,3112.0,0.01477901]
[1641893803062,0.463,3112.4,3112.1,0.08032]
[1641893803460,1.60683,3112.5,3112.2,0.01364216]
[1641893803661,0.08032,3112.8,3112.2,0.01364216]
[1641893803861,4.17838408,3112.8,3112.2,0.81682216]
[1641893804062,4.17838408,3112.8,3112.2,1.11682216]
[1641893804266,4.17838408,3112.8,3112.3,0.01307374]
[1641893804460,0.08032,3112.8,3112.3,0.01307374]
[1641893804661,0.08032,3112.8,3112.4,0.8031629]
[1641893804860,11.2670457,3113.4,3112.6,1.13785091]
[1641893804861,4.09806408,3113.4,3112.6,1.13785091]
[1641893805066,4.09806408,3113.4,3112.8,0.00551194]
[1641893805260,1.63829299,3113.7,3113.1,0.30663121]
[1641893805261,4.09806408,3113.5,3113.1,0.30663121]
[1641893805462,4.09806408,3113.5,3113.2,0.08029]
[1641893805715,4.09806408,3113.5,3113.2,0.08824793]
[1641893805916,4.09806408,3113.5,3113.3,0.0073895]
[1641893806117,4.79144987,3114.2,3113.4,0.08028]
[1641893806118,2.44126299,3114.2,3113.4,0.08028]
[1641893806328,0.80297,3113.9,3113.4,0.08028]
[1641893806517,1.63829299,3114.2,3113.3,0.0073895]
[1641893806518,0.08028,3114.1,3113.3,0.0073895]
[1641893806917,0.08028,3114.1,3113.1,0.00852635]
[1641893807319,0.80303,3113.9,3113.1,0.00852635]
[1641893807518,0.80305,3113.7,3113.1,0.00852635]
[1641893807918,1.63829299,3114.1,3113.1,0.00852635]
[1641893808318,1.63829299,3114.1,3113.1,3.81750797]
[1641893808519,6.78829299,3114.3,3113.1,3.81750797]
[1641893808719,5.62589299,3114.3,3113.5,0.8028157]
[1641893808920,5.62589299,3114.3,3114.1,0.66340159]
[1641893808921,1.63829299,3114.3,3114.1,0.66340159]
[1641893809318,4.09806408,3114.4,3114.2,0.00227369]
[1641893809593,1.63829299,3114.7,3114.2,0.00227369]
[1641893809783,1.63829299,3114.7,3114.3,0.8027109]
[1641893809984,1.63829299,3114.7,3114.4,0.08025]
[1641893810178,1.63829299,3114.7,3114.4,0.08138685]
[1641893810779,5.62374899,3115.0,3114.4,0.08138685]
[1641893810980,1.76694899,3115.0,3114.6,0.8026935]
[1641893811181,0.00113685,3114.8,3114.6,0.8026935]
[1641893812782,0.00113685,3114.8,3114.6,4.31167512]
[1641893812985,0.00113685,3114.8,3114.6,0.8026935]
[1641893814022,0.00113685,3114.8,3114.6,1.6052835]
[1641893814224,2.73001679,3114.9,3114.6,1.6052835]
[1641893814821,3.25972426,3115.6,3114.7,6.7]
[1641893814822,1.63829299,3115.6,3114.7,6.7]
[1641893815021,1.63829299,3115.6,3115.0,0.8024323]
[1641893815220,1.63829299,3115.6,3115.2,0.80242]
[1641893815221,0.00284211,3115.3,3115.2,0.80242]
[1641893815423,0.00284211,3115.3,3115.2,1.68340351]
[1641893816022,0.00284211,3115.3,3115.2,3.28823691]
[1641893817462,0.00284211,3115.3,3115.2,6.80694943]
[1641893817664,1.63829299,3115.7,3115.3,7.2]
[1641893817864,1.63829299,3115.8,3115.5,0.80221]
[1641893818065,2.45717426,3116.0,3115.6,4.5]
[1641893818268,2.45717426,3116.0,3115.7,1.60435]
[1641893818564,4.09806408,3116.4,3115.9,4.3]
[1641893818764,0.00803577,3116.5,3116.0,0.08021]
[1641893818967,0.00803577,3116.5,3116.0,1.81039]
[1641893818968,0.00113684,3116.1,3116.0,1.81039]
[1641893819169,0.00113684,3116.1,3116.0,2.11039]
[1641893819367,0.00113684,3116.1,3116.0,1.81039]
[1641893819569,0.00113684,3116.1,3116.0,2.11039]
[1641893819969,0.00113684,3116.1,3116.0,3.24303053]
[1641893820169,0.00113684,3116.1,3116.0,6.89692809]
[1641893820369,0.00113684,3116.1,3116.0,3.32325053]
[1641893820570,0.00113684,3116.1,3116.0,6.76215777]
[1641893820840,0.00113684,3116.1,3116.0,3.32325053]
[1641893821015,0.00113684,3116.1,3116.0,8.45970142]
[1641893822316,0.00113684,3116.1,3116.0,4.92734103]
[1641893822516,0.00113684,3116.1,3116.0,2.6926105]
[1641893822719,0.00113684,3116.1,3116.0,1.6843105]
[1641893822920,0.00113684,3116.1,3116.0,0.08022]
[1641893824321,0.00113684,3116.1,3115.6,2.0412836]
[1641893824571,0.00113684,3116.1,3115.6,2.3412836]
[1641893824771,0.00113684,3116.1,3115.7,0.00113685]
[1641893825172,0.00113684,3116.1,3115.8,0.8022411]
[1641893825572,0.00113684,3116.1,3115.9,0.3]
[1641893825774,0.00113684,3116.1,3115.9,3.82915906]
[1641893825974,0.00113684,3116.1,3115.9,0.3]
[1641893826172,0.00113684,3116.1,3115.9,3.746185]
[1641893826776,0.00113684,3116.1,3115.9,5.3504554]
[1641893826976,0.00113684,3116.1,3116.0,7.58182726]
[1641893827175,0.00113684,3116.1,3116.0,3.68182726]
[1641893827576,0.00113684,3116.1,3116.0,3.98182726]
[1641893827777,0.00113684,3116.1,3116.0,7.53182726]
[1641893828217,0.00113684,3116.1,3116.0,3.98182726]
[1641893828812,0.00113684,3116.1,3116.0,3.68182726]
[1641893829612,0.00113684,3116.1,3116.0,3.98182726]
[1641893830614,0.00113684,3116.1,3116.0,3.76203726]
[1641893832367,0.00113684,3116.1,3116.0,0.08021]
[1641893832768,0.00113684,3116.1,3116.0,3.47614776]
[1641893833570,0.9364741,3116.7,3116.1,7.2]
[1641893833775,0.9364741,3116.7,3116.4,0.80191]
[1641893833972,0.9364741,3116.7,3116.5,0.08021]
[1641893834473,0.9364741,3116.7,3116.5,1.16681]
[1641893834672,0.9364741,3116.7,3116.6,8.00357154]
[1641893834873,0.9364741,3116.7,3116.6,8.38378154]
[1641893835171,0.93988464,3116.7,3116.6,9.38378154]
[1641893835572,0.93988464,3116.7,3116.6,3.63378154]
[1641893835818,1.6372769,3117.4,3116.7,6.15]
[1641893836021,1.6372769,3117.4,3117.1,0.80186]
[1641893836221,0.00341054,3117.3,3117.1,0.80186]
[1641893836620,0.00284212,3117.2,3117.1,0.80186]
[1641893837521,0.00284212,3117.2,3117.1,1.10186]
[1641893837722,0.00284212,3117.2,3117.1,5.35186]
[1641893838121,0.00284212,3117.2,3117.1,4.66519729]
[1641893838720,0.00284212,3117.2,3117.1,7.21519729]
[1641893838926,0.00284212,3117.2,3117.1,7.51519729]
[1641893839120,0.00284212,3117.2,3117.1,4.96519729]
[1641893840762,0.00284212,3117.2,3117.1,4.66519729]
[1641893841964,0.00284212,3117.2,3117.1,1.10186]
[1641893842564,0.00284212,3117.2,3117.1,4.35186]
[1641893842763,0.00284212,3117.2,3117.1,4.65186]
[1641893843221,0.00284212,3117.2,3117.1,8.08712339]
[1641893843614,0.00284212,3117.2,3117.1,4.65186]
[1641893844216,0.00284212,3117.2,3117.1,1.40186]
[1641893844615,0.00284212,3117.2,3117.1,5.95186]
[1641893845615,0.00284212,3117.2,3117.1,9.56663988]
[1641893846017,0.00284212,3117.2,3117.1,5.00330655]
[1641893846619,0.00284212,3117.2,3117.1,1.38852667]
[1641893847471,0.00284212,3117.2,3117.1,4.86510968]
[1641893848772,0.00284212,3117.2,3117.1,1.38852667]
[1641893850472,1.64011902,3117.2,3117.1,1.38852667]
[1641893850914,1.64011902,3117.2,3117.1,4.98880936]
[1641893851117,7.71,3118.2,3117.3,2.4053233]
[1641893851118,2.45180843,3117.5,3117.3,2.4053233]
[1641893851416,2.45180843,3117.5,3117.4,2.48484]
[1641893851417,0.00170527,3117.5,3117.4,2.48484]
[1641893851614,0.00170527,3117.5,3117.4,5.83484]
[1641893851814,0.00170527,3117.5,3117.4,10.36723158]
[1641893852018,0.00170527,3117.5,3117.4,6.83484]
[1641893853217,0.00170527,3117.5,3117.4,3.78484]
[1641893853417,0.00170527,3117.5,3117.4,5.52455233]
[1641893853617,0.00170527,3117.5,3117.4,7.94323373]
[1641893853818,0.00170527,3117.5,3117.4,4.52455233]
[1641893854461,0.00170527,3117.5,3117.4,7.96930044]
[1641893854665,0.00170527,3117.5,3117.4,7.88913044]
[1641893854862,0.00170527,3117.5,3117.4,7.75277021]
[1641893855062,0.00170527,3117.5,3117.4,4.3080221]
[1641893855568,0.00170527,3117.5,3117.4,10.9080221]
[1641893857063,0.00170527,3117.5,3117.4,14.62847836]
[1641893858065,0.00170527,3117.5,3117.4,15.64122572]
[1641893859513,0.00170527,3117.5,3117.4,16.64122572]
[1641893860517,0.00170527,3117.5,3117.4,35.6175821]
[1641893861214,1.63627657,3118.3,3117.4,35.6175821]
[1641893861215,1.63627657,3118.3,3117.9,0.80158]
[1641893861416,1.63627657,3118.3,3118.0,5.36092843]
[1641893861614,0.00397897,3118.2,3118.0,5.36092843]
[1641893861814,1.54025554,3118.3,3118.0,5.36092843]
[1641893862079,2.45448804,3118.6,3118.0,5.36092843]
[1641893862080,3.26922449,3118.8,3118.3,18.84]
[1641893862275,0.6,3119.0,3118.3,18.84]
[1641893862276,3.86922449,3119.0,3118.5,1.54243956]
[1641893862478,3.86922449,3119.0,3118.7,0.80132]
[1641893862873,3.86922449,3119.0,3118.8,0.3]
[1641893863372,8.83723854,3119.5,3118.8,6.05]
[1641893863575,8.83723854,3119.5,3119.1,0.8012906]
[1641893863576,0.9364741,3119.5,3119.1,0.8012906]
[1641893863775,0.9364741,3119.5,3119.1,0.3]
[1641893863973,0.9364741,3119.5,3119.0,1.90259]
[1641893864376,0.9364741,3119.5,3119.2,1.81065654]
[1641893864579,0.9364741,3119.5,3119.2,0.43419485]
[1641893864779,0.9364741,3119.5,3119.3,0.80133]
[1641893865580,0.9364741,3119.5,3119.4,0.43419485]
[1641893866023,0.9438636,3119.5,3119.4,0.43419485]
[1641893868429,2.45628172,3119.5,3119.4,0.43419485]
[1641893869774,2.45628172,3119.5,3119.4,1.23560485]
[1641893872376,2.45628172,3119.5,3119.4,4.62273197]
[1641893872575,2.45628172,3119.5,3119.4,1.23560485]
[1641893872781,0.9438636,3119.5,3119.4,1.23560485]
[1641893873515,0.9438636,3119.5,3119.4,4.63508969]
[1641893875419,0.9438636,3119.5,3119.4,1.23560485]
[1641893877269,0.9438636,3119.5,3119.4,5.88560485]
[1641893879370,0.9438636,3119.5,3119.4,9.30459213]
[1641893880372,0.9438636,3119.5,3119.4,8.87039728]
[1641893880822,0.9438636,3119.5,3119.4,4.22039728]
[1641893882222,0.9438636,3119.5,3119.4,5.20141]
[1641893882828,0.9438636,3119.5,3119.4,0.80141]
[1641893884125,0.9438636,3119.5,3119.4,8.00141]
[1641893884330,4.24864213,3119.9,3119.5,7.2]
[1641893884574,0.05,3120.0,3119.7,0.80126]
[1641893884770,0.00170527,3119.8,3119.7,0.80126]
[1641893885168,0.00170527,3119.8,3119.7,9.98833857]
[1641893886370,0.05,3120.0,3119.7,9.98833857]
[1641893886371,4.8077,3120.7,3119.8,7.2]
[1641893886571,4.8077,3120.7,3119.9,3.5766758]
[1641893886771,0.00454739,3120.6,3120.2,1.60204]
[1641893886975,0.00454739,3120.6,3120.2,2.30604]
[1641893887271,0.00397896,3120.5,3120.2,2.30604]
[1641893887672,0.00341054,3120.4,3120.3,7.2801]
[1641893887872,0.00341054,3120.4,3120.3,8.08107]
[1641893888325,0.00341054,3120.4,3120.3,8.8821113]
[1641893888520,0.00341054,3120.4,3120.3,8.7821113]
[1641893888919,0.00341054,3120.4,3120.3,8.7020113]
[1641893889220,0.00341054,3120.4,3120.3,8.5020113]
[1641893889820,3.20341054,3120.4,3120.3,1.0020113]
[1641893890020,3.20341054,3120.4,3120.3,1.0821113]
[1641893891023,3.20341054,3120.4,3120.3,4.0821113]
[1641893892767,3.20341054,3120.4,3120.3,0.80097]
[1641893892967,3.20341054,3120.4,3119.9,0.0801]
[1641893893168,3.20341054,3120.4,3120.0,0.80121]
[1641893893370,0.00284212,3120.3,3120.0,0.80121]
[1641893893765,3.2,3120.4,3120.0,0.80121]
[1641893893766,0.00227369,3120.2,3120.0,0.80121]
[1641893894166,3.2,3120.4,3120.0,0.80121]
[1641893894167,0.00170527,3120.1,3120.0,0.80121]
[1641893894967,0.00170527,3120.1,3120.0,7.3523662]
[1641893895567,0.00170527,3120.1,3120.0,9.66965196]
[1641893895826,0.00170527,3120.1,3120.0,9.96965196]
[1641893896032,0.00170527,3120.1,3120.0,15.71695094]
[1641893896630,0.00170527,3120.1,3120.0,12.29522433]
[1641893897032,0.00170527,3120.1,3120.0,12.37533433]
[1641893898030,0.00170527,3120.1,3120.0,15.9564617]
[1641893899031,0.00170527,3120.1,3120.0,12.37533433]
[1641893899666,0.00170527,3120.1,3120.0,10.04976196]
[1641893901271,0.00170527,3120.1,3120.0,12.37866148]
[1641893901666,0.00170527,3120.1,3120.0,12.29855148]
[1641893901869,3.2,3120.4,3120.0,9.30942479]
[1641893902066,3.2,3120.4,3120.2,0.80106]
[1641893902270,0.00113685,3120.3,3120.2,0.80106]
[1641893903226,0.00113685,3120.3,3120.2,4.67080092]
[1641893904017,0.00113685,3120.3,3120.2,5.4470285]
[1641893904817,0.00113685,3120.3,3120.2,5.7470285]
[1641893905217,0.00113685,3120.3,3120.2,6.0470285]
[1641893905419,0.00113685,3120.3,3120.2,5.7470285]
[1641893905618,0.00113685,3120.3,3120.2,5.4470285]
[1641893906019,0.00113685,3120.3,3120.2,2.32868274]
[1641893906220,0.00113685,3120.3,3119.9,3.17590075]
[1641893906221,0.80137,3120.2,3119.9,3.17590075]
[1641893906425,0.01394338,3120.3,3119.9,3.17590075]
[1641893906620,0.00113685,3120.3,3119.9,3.17590075]
[1641893907076,0.00113685,3120.3,3119.4,5.59329609]
[1641893907077,0.00113685,3120.3,3119.8,1.55576699]
[1641893907470,0.00113685,3120.3,3120.2,0.87603464]
[1641893907672,0.80234685,3120.3,3120.2,0.87603464]
[1641893907973,0.80234685,3120.3,3120.0,1.55576699]
[1641893908770,0.80234685,3120.3,3119.9,2.35815384]
[1641893909170,0.80234685,3120.3,3120.2,0.91394953]
[1641893914336,0.70234685,3120.3,3120.2,0.91394953]
[1641893918335,0.00113685,3120.3,3120.2,0.91394953]
[1641893919537,0.00113685,3120.3,3120.2,2.04274953]
[1641893919738,0.00113685,3120.3,3120.2,9.54274953]
[1641893919936,3.2,3120.4,3120.3,7.2]
[1641893920137,3.2,3120.4,3120.3,9.08099]
[1641893921339,1.1546,3121.2,3120.5,18.84466019]
[1641893921539,4.9126,3122.1,3120.9,18.84]
[1641893921737,4.9126,3122.1,3121.0,0.08007]
[1641893921738,0.00454739,3121.1,3121.0,0.08007]
[1641893921975,0.00454739,3121.1,3121.0,0.38007]
[1641893922472,4.9126,3122.1,3121.0,0.8808]
[1641893922473,3.7092,3122.1,3121.0,0.8808]
[1641893922673,3.7092,3122.1,3121.1,18.84]
[1641893922873,3.7092,3122.1,3121.3,2.40191]
[1641893922874,0.00454738,3121.9,3121.3,2.40191]
[1641893923176,0.00397896,3121.8,3121.4,0.08007]
[1641893923372,0.00397896,3121.8,3121.5,0.71621173]
[1641893923574,0.128362,3122.2,3121.5,0.71621173]
[1641893923575,0.00341054,3121.7,3121.5,0.71621173]
[1641893923774,0.128362,3122.2,3121.6,26.84066]
[1641893924073,0.00227369,3122.1,3121.7,1.09156038]
[1641893924273,0.00227369,3122.1,3121.8,3.60952391]
[1641893924479,0.00170527,3122.0,3121.7,1.39156038]
[1641893924875,0.9364741,3122.3,3121.9,4.1]
[1641893925075,0.9364741,3122.3,3121.9,7.61926419]
[1641893925276,0.00227369,3122.1,3121.9,7.61926419]
[1641893925755,0.00170527,3122.0,3121.9,9.22043419]
[1641893926138,0.00170527,3122.0,3121.9,5.70117]
[1641893926340,0.00170527,3122.0,3121.9,1.60117]
[1641893926739,0.00170527,3122.0,3121.9,5.65117]
[1641893927740,0.00170527,3122.0,3121.9,1.60117]
[1641893927944,0.00170527,3122.0,3121.6,0.08007]
[1641893927945,0.00170527,3122.0,3121.6,2.30064389]
[1641893928243,0.00113684,3121.9,3121.6,2.30064389]
[1641893928443,0.00113684,3121.9,3121.1,2.30064389]
[1641893928444,0.80207684,3121.9,3121.1,2.30064389]
[1641893928843,0.00113684,3121.9,3121.8,0.8293121]
[1641893929475,0.00113684,3121.9,3121.8,1.6299721]
[1641893930577,0.00113684,3121.9,3121.8,0.8293121]
[1641893932978,0.00113684,3121.9,3121.5,2.30064389]
[1641893932979,0.80191684,3121.9,3121.5,2.30064389]
[1641893933234,0.80088,3121.8,3121.5,2.30064389]
[1641893933422,0.80088,3121.8,3121.4,2.30064389]
[1641893933820,0.80088,3121.8,3121.5,0.92460935]
[1641893934220,0.80089,3121.8,3121.5,0.92460935]
[1641893935021,0.00113684,3121.9,3121.5,1.22460935]
[1641893935224,0.00113684,3121.9,3121.6,0.08007]
[1641893935822,0.00113684,3121.9,3121.6,2.38071389]
[1641893936321,0.00113684,3121.9,3121.7,0.65951936]
[1641893936973,0.00113684,3121.9,3121.7,1.46025936]
[1641893937576,0.00113684,3121.9,3121.8,7.13007]
[1641893937973,0.00113684,3121.9,3121.8,0.38007]
[1641893938175,0.00113684,3121.9,3121.8,1.98127]
[1641893938574,0.00113684,3121.9,3121.8,9.55379781]
[1641893939174,0.00113684,3121.9,3121.8,9.34908671]
[1641893939675,0.00113684,3121.9,3121.8,6.93127]
[1641893939879,0.00113684,3121.9,3121.8,5.63127]
[1641893940277,0.00113684,3121.9,3121.8,1.68127]
[1641893940480,0.9364741,3122.3,3121.8,1.68127]
[1641893940736,0.9364741,3122.3,3121.8,1.6012]
[1641893940925,0.00170527,3122.2,3121.8,1.6012]
[1641893941324,0.80184685,3122.1,3121.8,2.29523381]
[1641893941933,0.00113685,3122.1,3121.8,4.87838296]
[1641893942427,0.00113685,3122.1,3121.9,0.80069]
[1641893943127,0.00113685,3122.1,3122.0,2.54659847]
[1641893943625,0.00113685,3122.1,3122.0,5.99084347]
[1641893943825,0.00113685,3122.1,3122.0,4.97541439]
[1641893944025,0.00113685,3122.1,3122.0,1.53116939]
[1641893945072,0.00113685,3122.1,3122.0,2.54659847]
[1641893945870,0.00113685,3122.1,3122.0,4.07776786]
[1641893948228,0.00113685,3122.1,3121.9,0.80069]
[1641893948423,3.20113685,3122.1,3121.9,0.80069]
[1641893949823,3.20113685,3122.1,3121.9,1.10069]
[1641893950426,3.20113685,3122.1,3121.9,0.80069]
[1641893950624,3.20113685,3122.1,3121.6,0.80077]
[1641893950625,3.57705034,3122.0,3121.6,0.80077]
[1641893950824,3.20113685,3122.1,3121.5,1.60258685]
[1641893951026,3.20113685,3122.1,3121.7,0.00113685]
[1641893951226,3.20113685,3122.1,3121.5,1.60145]
[1641893951227,3.20113685,3122.1,3121.6,0.00170527]
[1641893951628,0.80074,3121.9,3121.6,0.00170527]